fUST/lending_fUST_20240319
["ID","MTS","AMOUNT","RATE_DAILY","PERIOD"]
[319524261,1710827432960,-500.0,0.00020821,2]
[319524262,1710827432970,-500.0,0.00020821,2]
[319524263,1710827432980,-500.0,0.00020821,2]
[319524264,1710827432989,-500.0,0.00020821,2]
[319524265,1710827433000,-500.0,0.00020821,2]
[319524266,1710827433009,-500.0,0.00020821,2]
[319524267,1710827433019,-500.0,0.00020821,2]
[319524268,1710827433029,-500.25707378,0.00020821,2]
[319524269,1710827433040,-500.0,0.00020821,2]
[319524270,1710827433050,-500.0,0.00020821,2]
[319524271,1710827433060,-500.0,0.00020821,2]
[319524272,1710827433070,-500.0,0.00020821,2]
[319524273,1710827433080,-500.0,0.00020821,2]
[319524274,1710827433090,-2153.115513,0.00020859,2]
[319524275,1710827433100,-175.234543,0.00020861,2]
[319524276,1710827433110,-500.0,0.00020897,2]
[319524277,1710827433120,-500.0,0.00020897,2]
[319524278,1710827433129,-595.27610959,0.00020897,2]
[319524279,1710827433138,-166.75055813,0.00020897,2]
[319524280,1710827433149,-500.0,0.00020897,2]
[319524281,1710827433159,-500.0,0.00020897,2]
[319524282,1710827433169,-500.0,0.00020897,2]
[319524283,1710827433181,-606.77690093,0.00020897,2]
[319524284,1710827433191,-234.08632232,0.00020897,2]
[319524285,1710827433200,-168.71255208,0.00020898,2]
[319524286,1710827433209,-312.18602686,0.00020898,2]
[319524287,1710827433219,-379.55728125,0.00020898,2]
[319524288,1710827433229,-538.87035353,0.00020898,2]
[319524289,1710827433238,-500.0,0.00020898,2]
[319524290,1710827433248,-500.0,0.00020898,2]
[319524291,1710827433257,-530.19820949,0.00020898,2]
[319524292,1710827433267,-500.0,0.00020898,2]
[319524293,1710827433277,-500.0,0.00020898,2]
[319524294,1710827433286,-500.0,0.00020898,2]
[319524295,1710827433296,-500.0,0.00020898,2]
[319524296,1710827433306,-500.0,0.00020898,2]
[319524297,1710827433318,-500.0,0.00020898,2]
[319524298,1710827433329,-500.0,0.00020898,2]
[319524299,1710827433340,-500.0,0.00020898,2]
[319524300,1710827433351,-500.0,0.00020898,2]
[319524301,1710827433360,-500.0,0.00020898,2]
[319524302,1710827433370,-500.0,0.00020898,2]
[319524303,1710827433380,-502.36545491,0.00020898,2]
[319524304,1710827433391,-500.0,0.00020898,2]
[319524305,1710827433401,-598.20793385,0.00020898,2]
[319524306,1710827433410,-500.0,0.00020898,2]
[319524307,1710827433428,-500.0,0.00020898,2]
[319524308,1710827433438,-500.0,0.00020898,2]
[319524309,1710827433448,-500.0,0.00020898,2]
[319524310,1710827433459,-500.0,0.00020898,2]
[319524311,1710827433470,-500.0,0.00020898,2]
[319524312,1710827433479,-312.54514562,0.00020899,2]
[319524313,1710827433490,-155.08297433,0.00020899,2]
[319524314,1710827433500,-1148.04223621,0.00020899,2]
[319524315,1710827433510,-500.0,0.00020899,2]
[319524316,1710827433519,-500.0,0.00020899,2]
[319524317,1710827433529,-500.0,0.00020899,2]
[319524318,1710827433540,-500.0,0.00020899,2]
[319524319,1710827433550,-501.34915919,0.00020899,2]
[319524320,1710827433560,-500.0,0.00020899,2]
[319524321,1710827433570,-500.0,0.00020899,2]
[319524322,1710827433580,-500.0,0.00020899,2]
[319524323,1710827433589,-500.0,0.00020899,2]
[319524324,1710827433598,-510.19225,0.00020899,2]
[319524325,1710827433609,-500.0,0.00020899,2]
[319524326,1710827433702,-500.0,0.00020899,2]
[319524327,1710827433720,-500.0,0.00020899,2]
[319524328,1710827433733,-500.0,0.00020899,2]
[319524329,1710827433744,-500.0,0.00020899,2]
[319524330,1710827433756,-500.0,0.00020899,2]
[319524331,1710827433766,-500.0,0.00020899,2]
[319524332,1710827433777,-500.0,0.00020899,2]
[319524333,1710827433790,-500.0,0.00020899,2]
[319524334,1710827433801,-500.0,0.00020899,2]
[319524335,1710827433811,-500.0,0.00020899,2]
[319524336,1710827433821,-297.56,0.00020899,2]
[319524337,1710827433831,-500.0,0.00020899,2]
[319524338,1710827433840,-500.0,0.00020899,2]
[319524339,1710827433850,-500.0,0.00020899,2]
[319524340,1710827433860,-500.0,0.00020899,2]
[319524341,1710827433870,-500.0,0.00020899,2]
[319524342,1710827433880,-500.0,0.00020899,2]
[319524343,1710827433890,-500.0,0.00020899,2]
[319524344,1710827433899,-457.1393189,0.00020899,2]
[319524345,1710827433908,-500.0,0.00020899,2]
[319524346,1710827433919,-500.0,0.00020899,2]
[319524347,1710827433932,-423.65903409,0.00020899,2]
[319524348,1710827433941,-145000.16818691,0.000209,2]
[319524349,1710827433951,-747.29103246,0.000209,2]
[319524350,1710827433960,-259.5544942,0.000209,2]
[319524351,1710827433969,-265.193685,0.00020943,2]
[319524352,1710827433978,-405.815841,0.00020943,2]
[319524353,1710827433988,-151.52847512,0.00020958,2]
[319524354,1710827433997,-259.55449411,0.00020967,2]
[319524355,1710827434010,-153.0,0.00020996,2]
[319524356,1710827434019,-500.0,0.00020997,2]
[319524357,1710827434029,-181.25815924,0.00020998,2]
[319524358,1710827434038,-400.0,0.00020998,2]
[319524359,1710827434047,-155.08437307,0.00020998,2]
[319524360,1710827434057,-1447.39950363,0.00020998,2]
[319524361,1710827434066,-157.22909361,0.00020998,2]
[319524362,1710827434076,-341.39611652,0.00020998,2]
[319524363,1710827434086,-172.59672644,0.00020998,2]
[319524364,1710827434095,-1518.53587366,0.00020998,2]
[319524365,1710827434105,-500.0,0.00020998,2]
[319524366,1710827434116,-500.0,0.00020998,2]
[319524367,1710827434125,-500.0,0.00020998,2]
[319524368,1710827434135,-500.0,0.00020998,2]
[319524369,1710827434145,-500.0,0.00020998,2]
[319524370,1710827434154,-500.0,0.00020998,2]
[319524371,1710827434164,-500.0,0.00020998,2]
[319524372,1710827434177,-368.7,0.00020998,2]
[319524373,1710827434186,-500.0,0.00020998,2]
[319524374,1710827434196,-500.0,0.00020998,2]
[319524375,1710827434205,-500.0,0.00020998,2]
[319524376,1710827434215,-155.00941517,0.00020999,2]
[319524377,1710827434224,-256.73546067,0.00020999,2]
[319524378,1710827434234,-239.46420851,0.00020999,2]
[319524379,1710827434244,-500.0,0.00020999,2]
[319524380,1710827434254,-369.93798239,0.00020999,2]
[319524381,1710827434263,-500.89138023,0.00020999,2]
[319524382,1710827434273,-208.15023816,0.00020999,2]
[319524383,1710827434282,-500.0,0.00020999,2]
[319524384,1710827434292,-500.0,0.00020999,2]
[319524385,1710827434301,-500.0,0.00020999,2]
[319524386,1710827434310,-151.0,0.00020999,2]
[319524387,1710827434320,-151.0,0.00020999,2]
[319524388,1710827434329,-151.0,0.00020999,2]
[319524389,1710827434339,-500.92821214,0.00020999,2]
[319524390,1710827434348,-500.0,0.00020999,2]
[319524391,1710827434358,-500.0,0.00020999,2]
[319524392,1710827434368,-500.0,0.00020999,2]
[319524393,1710827434377,-500.0,0.00020999,2]
[319524394,1710827434386,-595.30383915,0.00020999,2]
[319524395,1710827434397,-500.00821333,0.00020999,2]
[319524396,1710827434407,-500.0,0.00020999,2]
[319524397,1710827434418,-500.0,0.00020999,2]
[319524398,1710827434435,-500.0,0.00020999,2]
[319524399,1710827434446,-456.66913785,0.00020999,2]
[319524400,1710827434457,-500.0,0.00020999,2]
[319524401,1710827434468,-500.0,0.00020999,2]
[319524402,1710827434477,-500.0,0.00020999,2]
[319524403,1710827434487,-500.0,0.00020999,2]
[319524404,1710827434497,-626.87754455,0.00020999,2]
[319524405,1710827434507,-500.0,0.00020999,2]
[319524406,1710827434518,-500.0,0.00020999,2]
[319524407,1710827434528,-500.0,0.00020999,2]
[319524408,1710827434537,-511.12989525,0.00020999,2]
[319524409,1710827434547,-500.0,0.00020999,2]
[319524410,1710827434558,-500.0,0.00020999,2]
[319524411,1710827434567,-500.0,0.00020999,2]
[319524412,1710827434577,-500.0,0.00020999,2]
[319524413,1710827434587,-500.0,0.00020999,2]
[319524414,1710827434596,-500.0,0.00020999,2]
[319524415,1710827434606,-326.7997673,0.00020999,2]
[319524416,1710827434616,-500.0,0.00020999,2]
[319524417,1710827434626,-500.0,0.00020999,2]
[319524418,1710827434635,-500.0,0.00020999,2]
[319524419,1710827434645,-500.0,0.00020999,2]
[319524420,1710827434654,-500.0,0.00020999,2]
[319524421,1710827434664,-500.0,0.00020999,2]
[319524422,1710827434677,-500.0,0.00020999,2]
[319524423,1710827434687,-500.0,0.00020999,2]
[319524424,1710827434697,-500.0,0.00020999,2]
[319524425,1710827434706,-500.0,0.00020999,2]
[319524426,1710827434715,-500.0,0.00020999,2]
[319524427,1710827434724,-500.0,0.00020999,2]
[319524428,1710827434733,-629.42131916,0.00020999,2]
[319524429,1710827434743,-500.0,0.00020999,2]
[319524430,1710827434753,-500.0,0.00020999,2]
[319524431,1710827434762,-500.0,0.00020999,2]
[319524432,1710827434771,-500.0,0.00020999,2]
[319524433,1710827434780,-500.0,0.00020999,2]
[319524434,1710827434794,-500.0,0.00020999,2]
[319524435,1710827434803,-466.2,0.00020999,2]
[319524436,1710827434812,-500.0,0.00020999,2]
[319524437,1710827434822,-500.0,0.00020999,2]
[319524438,1710827434831,-350.60364069,0.00020999,2]
[319524439,1710827434840,-531.04,0.00020999,2]
[319524440,1710827434850,-500.0,0.00020999,2]
[319524441,1710827434859,-501.54553248,0.00020999,2]
[319524442,1710827434868,-500.0,0.00020999,2]
[319524443,1710827434878,-501.67282902,0.00020999,2]
[319524444,1710827434887,-500.0,0.00020999,2]
[319524445,1710827434897,-500.0,0.00020999,2]
[319524446,1710827434907,-500.0,0.00020999,2]
[319524447,1710827434920,-500.0,0.00020999,2]
[319524448,1710827434936,-500.0,0.00020999,2]
[319524449,1710827434950,-500.0,0.00020999,2]
[319524450,1710827434964,-500.0,0.00020999,2]
[319524451,1710827434978,-500.0,0.00020999,2]
[319524452,1710827434990,-500.0,0.00020999,2]
[319524453,1710827435004,-479.45,0.00020999,2]
[319524454,1710827435018,-500.0,0.00020999,2]
[319524455,1710827435030,-501.91997487,0.00020999,2]
[319524456,1710827435041,-500.0,0.00020999,2]
[319524457,1710827435053,-500.0,0.00020999,2]
[319524458,1710827435065,-500.0,0.00020999,2]
[319524459,1710827435079,-500.0,0.00020999,2]
[319524460,1710827435091,-500.0,0.00020999,2]
[319524461,1710827435104,-593.30394245,0.00020999,2]
[319524462,1710827435118,-365.03551066,0.00020999,2]
[319524463,1710827435132,-500.0,0.00020999,2]
[319524464,1710827435144,-500.0,0.00020999,2]
[319524465,1710827435156,-500.0,0.00020999,2]
[319524466,1710827435168,-500.0,0.00020999,2]
[319524467,1710827435187,-500.0,0.00020999,2]
[319524468,1710827435199,-500.0,0.00020999,2]
[319524469,1710827435211,-500.0,0.00020999,2]
[319524470,1710827435224,-500.0,0.00020999,2]
[319524471,1710827435236,-540.63,0.00020999,2]
[319524472,1710827435248,-500.0,0.00020999,2]
[319524473,1710827435259,-500.0,0.00020999,2]
[319524474,1710827435270,-500.0,0.00020999,2]
[319524475,1710827435282,-500.0,0.00020999,2]
[319524476,1710827435292,-500.0,0.00020999,2]
[319524477,1710827435304,-500.0,0.00020999,2]
[319524478,1710827435316,-500.0,0.00020999,2]
[319524479,1710827435329,-242.27758974,0.00020999,2]
[319524480,1710827435341,-500.0,0.00020999,2]
[319524481,1710827435354,-500.0,0.00020999,2]
[319524482,1710827435366,-500.0,0.00020999,2]
[319524483,1710827435378,-500.0,0.00020999,2]
[319524484,1710827435390,-500.0,0.00020999,2]
[319524485,1710827435401,-500.0,0.00020999,2]
[319524486,1710827435412,-500.0,0.00020999,2]
[319524487,1710827435427,-500.0,0.00020999,2]
[319524488,1710827435438,-500.0,0.00020999,2]
[319524489,1710827435450,-500.0,0.00020999,2]
[319524490,1710827435463,-523.3803796,0.00020999,2]
[319524491,1710827435475,-2650116.13675103,0.00021,5]
[319524492,1710827435512,-13524.4,0.00021,5]
[319524534,1710827438604,-500.0,0.00020821,2]
[319524535,1710827438615,-500.0,0.00020898,2]
[319524536,1710827438627,-442.15285313,0.00020899,2]
[319524537,1710827438637,-500.0,0.00020999,2]
[319524538,1710827438648,-500.34810829,0.00020999,2]
[319524539,1710827438659,-4241.6584015,0.00021,5]
[319524540,1710827438672,-432.25340078,0.00021,5]
[319524541,1710827438705,-500.0,0.00021,5]
[319524641,1710827440862,-500.0,0.00020613,2]
[319524642,1710827440874,-5979.3,0.000208,2]
[319524990,1710827444404,-21654.71453684,0.000208,2]
[319525258,1710827446607,-10366.70033173,0.000208,2]
[319525260,1710827446618,-237.15416774,0.00020999,2]
[319525262,1710827446628,-628.72162139,0.00020999,2]
[319525264,1710827446638,-143848.58243914,0.00021,5]
[319525266,1710827446650,-76372.79403451,0.00021,5]
[319525269,1710827446663,-61852.33380412,0.00021,5]
[319525833,1710827452553,687.45797196,0.000177,2]
[319533646,1710827835082,154.90705577,0.000177,2]
[319533647,1710827853075,154.90705577,0.000177,2]
[319533658,1710828561120,-154.90705577,0.00018793,2]
[319533659,1710828561143,-280.9185099,0.00018794,2]
[319533660,1710828561166,-154.90705577,0.00018799,2]
[319533697,1710828632729,-175.234543,0.0001906,2]
[319533698,1710828632740,-175.234543,0.00019432,2]
[319533699,1710828632750,-336.92563888,0.00019948,2]
[319533700,1710828632760,-200.0,0.0002,2]
[319533701,1710828632769,-155.0,0.00020575,2]
[319533702,1710828632780,-303.86098979,0.00020821,2]
[319533703,1710828632790,-500.0,0.00020821,2]
[319533704,1710828632801,-500.0,0.00020821,2]
[319533705,1710828632811,-500.0,0.00020821,2]
[319533706,1710828632943,-500.0,0.00020821,2]
[319533707,1710828632954,-500.51141274,0.00020821,2]
[319533708,1710828632963,-507.00063376,0.00020821,2]
[319533709,1710828632973,-500.0,0.00020821,2]
[319533710,1710828632982,-500.0,0.00020821,2]
[319533711,1710828632991,-500.0,0.00020821,2]
[319533712,1710828633000,-500.0,0.00020821,2]
[319533713,1710828633010,-500.0,0.00020821,2]
[319533714,1710828633019,-500.0,0.00020821,2]
[319533715,1710828633028,-500.0,0.00020821,2]
[319533716,1710828633038,-500.0,0.00020821,2]
[319533717,1710828633048,-500.0,0.00020821,2]
[319533718,1710828633058,-500.0,0.00020821,2]
[319533719,1710828633068,-3405.33653319,0.00020821,2]
[319533720,1710828633077,-513.79293068,0.00020898,2]
[319533721,1710828633086,-500.0,0.00020898,2]
[319533722,1710828633104,-500.0,0.00020898,2]
[319533723,1710828633116,-215.87297113,0.00020898,2]
[319533724,1710828633126,-500.0,0.00020899,2]
[319533725,1710828633136,-500.0,0.00020899,2]
[319533726,1710828633152,-500.0,0.00020899,2]
[319533727,1710828633162,-500.0,0.00020899,2]
[319533728,1710828633173,-500.0,0.00020899,2]
[319533729,1710828633183,-583.80292565,0.00020899,2]
[319533730,1710828633194,-1000.0,0.000209,2]
[319533731,1710828633204,-417.75953348,0.00020998,2]
[319533732,1710828633214,-938.60061694,0.00020998,2]
[319533733,1710828633227,-245.70012895,0.00020998,2]
[319533734,1710828633238,-305.89971124,0.00020998,2]
[319533735,1710828633250,-1568.44725333,0.00020998,2]
[319533736,1710828633260,-208.46014037,0.00020998,2]
[319533737,1710828633270,-500.0,0.00020998,2]
[319533738,1710828633281,-500.0,0.00020998,2]
[319533739,1710828633291,-154.90705577,0.00020998,2]
[319533740,1710828633301,-282.06409348,0.00020998,2]
[319533741,1710828633311,-2307.96041397,0.00020999,2]
[319533742,1710828633321,-500.0,0.00020999,2]
[319533743,1710828633331,-500.0,0.00020999,2]
[319533744,1710828633341,-500.0,0.00020999,2]
[319533745,1710828633351,-500.0,0.00020999,2]
[319533746,1710828633361,-500.0,0.00020999,2]
[319533747,1710828633370,-500.0,0.00020999,2]
[319533748,1710828633380,-500.0,0.00020999,2]
[319533749,1710828633389,-500.0,0.00020999,2]
[319533750,1710828633402,-500.0,0.00020999,2]
[319533751,1710828633412,-500.0,0.00020999,2]
[319533752,1710828633421,-500.0,0.00020999,2]
[319533753,1710828633432,-500.0,0.00020999,2]
[319533754,1710828633442,-201.69257434,0.00020999,2]
[319533755,1710828633452,-500.0,0.00020999,2]
[319533756,1710828633462,-500.0,0.00020999,2]
[319533757,1710828633472,-500.0,0.00020999,2]
[319533758,1710828633482,-316.50518489,0.00020999,2]
[319533759,1710828633492,-500.0,0.00020999,2]
[319533760,1710828633501,-224.02,0.00020999,2]
[319533761,1710828633510,-500.0,0.00020999,2]
[319533762,1710828633520,-500.0,0.00020999,2]
[319533763,1710828633529,-500.0,0.00020999,2]
[319533764,1710828633539,-500.0,0.00020999,2]
[319533765,1710828633548,-500.0,0.00020999,2]
[319533766,1710828633558,-500.0,0.00020999,2]
[319533767,1710828633567,-449.56,0.00020999,2]
[319533768,1710828633576,-500.0,0.00020999,2]
[319533769,1710828633586,-500.0,0.00020999,2]
[319533770,1710828633595,-504.57192306,0.00020999,2]
[319533771,1710828633604,-500.0,0.00020999,2]
[319533772,1710828633614,-500.0,0.00020999,2]
[319533773,1710828633624,-500.0,0.00020999,2]
[319533774,1710828633634,-500.0,0.00020999,2]
[319533775,1710828633643,-500.0,0.00020999,2]
[319533776,1710828633656,-500.0,0.00020999,2]
[319533777,1710828633665,-500.0,0.00020999,2]
[319533778,1710828633675,-604.86239115,0.00020999,2]
[319533779,1710828633684,-500.0,0.00020999,2]
[319533780,1710828633694,-554.92,0.00020999,2]
[319533781,1710828633703,-195.91685096,0.00020999,2]
[319533782,1710828633713,-427.09771023,0.00020999,2]
[319533783,1710828633722,-21950.69382077,0.00021,5]
[319533784,1710828633764,-407815.15187382,0.00021,5]
[319533785,1710828633775,-1685.58237634,0.00021,2]
[319533786,1710828633785,-200.2701776,0.00021,2]
[319533787,1710828633795,-12021.23463111,0.00021,2]
[319533788,1710828633805,-174.0,0.00021,2]
[319533789,1710828633815,-4457.52529733,0.00021,2]
[319533790,1710828633825,-660.6030075,0.00021,2]
[319533791,1710828633834,-737.0,0.00021,2]
[319533792,1710828633843,-405.815841,0.00021198,2]
[319533793,1710828633852,-265.193685,0.00021198,2]
[319533794,1710828633862,-1000.07456311,0.00021365,2]
[319533795,1710828633871,-298.22215226,0.0002141,2]
[319533796,1710828633881,-405.815841,0.00021454,2]
[319533797,1710828633890,-265.193685,0.00021454,2]
[319533798,1710828633903,-2076.43595288,0.00021475,2]
[319533799,1710828633914,-1000.0,0.00021504,2]
[319533800,1710828633923,-567.97265559,0.00021536,2]
[319533801,1710828633932,-153.392746,0.00021575,2]
[319533802,1710828633942,-151.371903,0.00021575,2]
[319533803,1710828633951,-151.0,0.00021575,2]
[319533804,1710828633960,-278.141052,0.00021575,2]
[319533805,1710828633970,-1535281.6166942,0.00021575,60]
[319533806,1710828633979,-117399.10845604,0.00021575,60]
[319533807,1710828633988,-619387.15533721,0.00021575,60]
[319533808,1710828633998,-456248.62203749,0.00021575,60]
[319533809,1710828634008,-236913.50003452,0.00021575,60]
[319533810,1710828634020,-1020.38827629,0.00021575,60]
[319533993,1710828638851,-285.68099122,0.00021359,2]
[319533997,1710828638863,-6320.16074071,0.00021359,2]
[319533999,1710828638872,-6480.17744838,0.00021575,60]
[319534071,1710828640874,-1481.480008,0.00021575,60]
[319534073,1710828640887,-40262.47910064,0.00021575,60]
[319534140,1710828660715,304.84398803,0.00018799,2]
[319534192,1710829631163,-204.98847702,0.00018032,2]
[319534193,1710829631190,-187.5384845,0.00018032,2]
[319534194,1710829631214,-154.93802479,0.00018033,2]
[319534195,1710829631238,-154.92253873,0.00018038,2]
[319534196,1710829631271,-12438.30324786,0.00018218,2]
[319534202,1710829754013,-1235.62548464,0.00018036,2]
[319534203,1710829754033,-1235.62548464,0.00018218,2]
[319534204,1710829754060,-385.55651321,0.00018799,2]
[319534205,1710829754079,-186.33152971,0.00018799,2]
[319534252,1710829832013,-154.93802479,0.00019642,2]
[319534254,1710829832023,-170.20594938,0.00019643,2]
[319534256,1710829832036,-5.61617662,0.00019643,2]
[319534261,1710829832051,-200.0,0.00020194,2]
[319534262,1710829832060,-256.61182338,0.00020494,2]
[319534265,1710829832073,-80.3138155,0.00020494,2]
[319534267,1710829832082,-150.0,0.00020552,2]
[319534268,1710829832092,-500.0,0.00020998,2]
[319534270,1710829832105,-501.40724696,0.00020999,2]
[319534272,1710829832114,-501.2748531,0.00020999,2]
[319534274,1710829832123,-504.6546566,0.00020999,2]
[319534275,1710829832133,-500.0,0.00020999,2]
[319534276,1710829832143,-154.93802479,0.00021,2]
[319534277,1710829832152,-582.0,0.000212,2]
[319534278,1710829832162,-175.68901702,0.000214,2]
[319534279,1710829832172,-198.81476818,0.0002141,2]
[319534280,1710829832181,-175.689017,0.00021441,2]
[319534281,1710829832190,-1000.0,0.00021479,2]
[319534282,1710829832200,-175.689017,0.00021482,2]
[319534283,1710829832209,-128.59281681,0.00021482,2]
[319534284,1710829832221,-439.565,0.00021482,2]
[319534286,1710829832232,-5.176802,0.00021482,2]
[319534287,1710829832241,-2473.43639864,0.000215,2]
[319534288,1710829832253,-21794.56360136,0.000215,2]
[319534289,1710829832262,-174.0,0.000215,2]
[319534290,1710829832272,-4521.66657685,0.00021572,2]
[319534291,1710829832281,-1382.95621485,0.00021573,2]
[319534292,1710829832291,-324.68206694,0.00021573,2]
[319534293,1710829832300,-3503.44419501,0.00021573,2]
[319534294,1710829832309,-309.38736233,0.00021574,2]
[319534295,1710829832318,-382.98616348,0.00021575,2]
[319534296,1710829832328,-389.64546422,0.00021575,2]
[319534297,1710829832338,-500.0,0.00021576,2]
[319534298,1710829832348,-500.0,0.00021576,2]
[319534299,1710829832362,-500.0,0.00021576,2]
[319534300,1710829832371,-352.51163344,0.00021576,2]
[319534301,1710829832381,-607.8023828,0.00021576,2]
[319534302,1710829832391,-252.30418672,0.00021577,2]
[319534303,1710829832401,-173.905313,0.00021577,2]
[319534304,1710829832410,-154.9690062,0.00021577,2]
[319534305,1710829832420,-2629.47333083,0.00021577,2]
[319534306,1710829832430,-204.98847702,0.00021577,2]
[319534307,1710829832439,-187.30370368,0.00021577,2]
[319534308,1710829832448,-10267.62499435,0.00021578,2]
[319534309,1710829832458,-183.04187581,0.00021578,2]
[319534310,1710829832470,-457.10751968,0.00021579,2]
[319534311,1710829832480,-500.0,0.00021579,2]
[319534312,1710829832490,-500.0,0.00021579,2]
[319534313,1710829832499,-500.0,0.00021579,2]
[319534314,1710829832510,-500.0,0.00021579,2]
[319534315,1710829832519,-500.0,0.00021579,2]
[319534316,1710829832529,-500.0,0.00021579,2]
[319534317,1710829832539,-500.0,0.00021579,2]
[319534318,1710829832549,-500.0,0.00021579,2]
[319534319,1710829832559,-500.0,0.00021579,2]
[319534320,1710829832568,-500.0,0.00021579,2]
[319534321,1710829832577,-500.0,0.00021579,2]
[319534322,1710829832587,-500.0,0.00021579,2]
[319534323,1710829832597,-500.0,0.00021579,2]
[319534324,1710829832609,-500.0,0.00021579,2]
[319534325,1710829832619,-500.0,0.00021579,2]
[319534326,1710829832628,-500.0,0.00021579,2]
[319534327,1710829832637,-500.0,0.00021579,2]
[319534328,1710829832646,-500.0,0.00021579,2]
[319534329,1710829832656,-173.04,0.00021579,2]
[319534330,1710829832665,-500.0,0.00021579,2]
[319534331,1710829832675,-593.55,0.00021579,2]
[319534332,1710829832685,-27384.09238536,0.00021581,2]
[319534333,1710829832697,-458057.34371747,0.00021582,60]
[319534334,1710829832708,-335228.519703,0.00021582,60]
[319534335,1710829832717,-150.0,0.00021582,2]
[319534336,1710829832726,-300.0,0.00021582,2]
[319534337,1710829832736,-254198.68200082,0.00021582,60]
[319534338,1710829832745,-145734.12673708,0.00021582,60]
[319534339,1710829832754,-418926.2813877,0.00021582,60]
[319534405,1710829838062,-390.09163632,0.00021582,60]
[319534407,1710829838082,-5957.64909485,0.00021582,60]
[319534408,1710829838094,-400.3895347,0.00021582,60]
[319534437,1710829840150,-1141.66264446,0.00021582,60]
[319534501,1710829843043,-24401.12223311,0.00021582,60]
[319534504,1710829843055,-1357.54,0.00021582,60]
[319534508,1710829843082,-18205.70776923,0.00021582,60]
[319534576,1710829846035,-241.95651874,0.00021581,2]
[319534577,1710829846044,-165.67897348,0.00021581,2]
[319534578,1710829846054,-33459.95315761,0.00021582,60]
[319534580,1710829846063,-37074.94036364,0.00021582,60]
[319534581,1710829846075,-57210.65054105,0.00021582,60]
[319534583,1710829846102,-28786.77922933,0.00021582,60]
[319534587,1710829846169,-0.1918854,0.00021582,60]
[319534657,1710830825147,-154.95351395,0.00020063,2]
[319534658,1710830825169,-200.0,0.00020064,2]
[319534659,1710830825191,-13.48547413,0.00020552,2]
[319534719,1710831032291,-136.51452587,0.00020552,2]
[319534721,1710831032300,-163.65244037,0.00020998,2]
[319534722,1710831032310,-326.89,0.00020999,2]
[319534724,1710831032319,-568.82,0.00020999,2]
[319534726,1710831032329,-568.82,0.00020999,2]
[319534728,1710831032338,-568.82,0.00020999,2]
[319534729,1710831032348,-568.82,0.00020999,2]
[319534730,1710831032357,-568.82,0.00020999,2]
[319534732,1710831032366,-568.82,0.00020999,2]
[319534734,1710831032376,-568.82,0.00020999,2]
[319534736,1710831032385,-568.82,0.00020999,2]
[319534737,1710831032395,-568.82,0.00020999,2]
[319534739,1710831032404,-568.82,0.00020999,2]
[319534741,1710831032413,-568.82,0.00020999,2]
[319534743,1710831032422,-568.82,0.00020999,2]
[319534745,1710831032431,-568.82,0.00020999,2]
[319534747,1710831032440,-568.82,0.00020999,2]
[319534749,1710831032449,-568.82,0.00020999,2]
[319534751,1710831032459,-568.82,0.00020999,2]
[319534753,1710831032468,-568.82,0.00020999,2]
[319534755,1710831032477,-568.82,0.00020999,2]
[319534757,1710831032486,-568.82,0.00020999,2]
[319534758,1710831032495,-568.82,0.00020999,2]
[319534760,1710831032504,-568.82,0.00020999,2]